Cogmind - Beta 16.1 @@@ ROGUE MODE // 2026.02.12 @ 21:54:57 Player: taffyko Result: Destroyed by G-34 Mercenary with Small Laser Performance ------------- Evolutions (0) 0 Regions Visited (1) 200 Robots Destroyed (13) 65 Value Destroyed (292) 292 Prototype IDs (0) 0 Alien Tech Used (0) 0 Bonus (0) 0 TOTAL SCORE: 557 Bonus ------- None Cogmind --------- Core Integrity 0/250 Matter 276/300 Energy 225/225 System Corruption 0% Temperature Cool (58) Movement Walking (120) Location -10/Materials Parts ------- > --- POWER (1) -------- Light Ion Engine > --- PROPULSION (2) --- Aluminum Leg Aluminum Leg > --- UTILITY (2) ------ Small Battery Visual Processing Unit > --- WEAPON (2) ------- Particle Gun Assault Rifle > --- INVENTORY (5) ---- Heat Sink Terrain Scanner Particle Gun Light Assault Rifle Peak State ------------ > --- POWER ------------ Light Ion Engine > --- PROPULSION ------- Aluminum Leg Aluminum Leg > --- UTILITY ---------- Small Battery Visual Processing Unit > --- WEAPON ----------- Particle Gun Light Assault Rifle > --- INVENTORY -------- Heat Sink Particle Gun [Rating: 9] Favorites ----------- Power Light Ion Engine Engine Light Ion Engine Propulsion Wheel Leg Aluminum Leg Wheel Wheel Utility Visual Processing Unit Storage Small Battery Processor Visual Processing Unit Weapon Light Assault Rifle Energy Gun Medium Laser Energy Cannon Beam Cannon Ballistic Gun Light Assault Rifle Launcher Grenade Launcher Build | -11 -10 ------- Run | Yrd Mat Slots Evolved . | . . Power . | . . Propulsion . | . . Utility . | . . Weapon . | . . Parts Attached 18 | 7 11 Power 3 | 1 2 Engine 3 | 1 2 Core . | . . Reactor . | . . Propulsion 7 | 4 3 Treads . | . . Leg 4 | 2 2 Wheel 3 | 2 1 Hover . | . . Flight . | . . Utility 2 | . 2 Device . | . . Storage 1 | . 1 Processor 1 | . 1 Hackware . | . . Protection . | . . Artifact . | . . Weapon 6 | 2 4 Energy Gun 2 | 1 1 Energy Cannon 1 | . 1 Ballistic Gun 2 | 1 1 Ballistic Cannon . | . . Launcher 1 | . 1 Special Weapon . | . . Impact Weapon . | . . Slashing Weapon . | . . Piercing Weapon . | . . Special Melee Weapon . | . . Unidentified Prototypes . | . . Parts Lost 8 | . 8 Power 2 | . 2 Propulsion 3 | . 3 Utility . | . . Weapon 3 | . 3 Highest Loss Streak 4 | . 4 To Critical Strikes . | . . Average Backups 1 | . 2 Power . | . . Propulsion . | . . Utility . | . . Weapon 1 | . 1 Tool/Special . | . . Unused Backups 3 | . 3 Power . | . . Propulsion . | . . Utility 2 | . 2 Weapon 1 | . 1 Tool/Special . | . . Average Slot Usage (%) 88 | . 88 Engine 12 | . 12 Leg 10 | . 10 Wheel 14 | . 14 Storage 11 | . 11 Processor 12 | . 12 Energy Gun 8 | . 8 Energy Cannon 5 | . 5 Ballistic Gun 10 | . 10 Launcher 1 | . 1 Peak Build Rating 9 | 5 9 Average Rating 6 | 2 7 On Entrance 2 | . 5 Avg Prop Armor Cover (%) . | . . Naked Turns . | . . Heaviest Build 12 | 6 12 Greatest Support 26 | 20 26 Greatest Overweight (x) 1 | . 1 Average Overweight (x) . | . . Largest Inventory Capacity 5 | 5 5 Average Capacity 5 | 5 5 Most Carried 4 | 2 4 Average Carried 1 | . 2 Final Capacity 5 | 5 5 Final Carried 4 | . 4 Class Distribution -------------------- 77% | Mutant 22% | Scavenger-Mutant Dominant Class ---------------- Mutant | -10/Materials Resources | -11 -10 ----------- Run | Yrd Mat Matter Collected 502 | 277 225 Remotely . | . . Salvage Created 265 | 32 233 Parts 22 | 1 21 Haulers Intercepted . | . . Recyclers Shooed . | . . Parts Field Recycled . | . . Retrieved Matter . | . . Parts Self-Destructed . | . . Prevented . | . . Parts Restored . | . . Kills | -11 -10 ------- Run | Yrd Mat Combat Hostiles Destroyed 9 | 1 8 Guns 4 | 1 3 Cannons 1 | . 1 AOE 4 | . 4 Classes Destroyed 5 | 1 4 Builder 2 | . 2 Recycler 1 | . 1 Watcher 1 | . 1 Swarmer 3 | . 3 Grunt 6 | 1 5 Best Kill Streak 6 | 1 6 Combat Bots Only 4 | 1 4 Max Kills in Single Turn 2 | 1 2 Gunslinging . | . . Exploded 2 | . 2 Melee . | . . Uniques/NPCs Destroyed . | . . Combat | -11 -10 -------- Run | Yrd Mat Hostile Shots Fired 99 | 9 90 Missed 33 | 5 28 Hits 66 | 4 62 Projectile 66 | 4 62 Critical Strikes 1 | . 1 Damage Taken 836 | 42 794 Core 252 | 20 232 Absorbed by Shields . | . . Core Remaining (%) 92 | 92 . Volleys Fired 65 | 7 58 Largest 2 | 2 2 Hottest 110 | 70 110 Shots Fired 107 | 14 93 Gun 85 | 14 71 Cannon 16 | . 16 Launcher 6 | . 6 Special . | . . Kinetic 48 | 7 41 Thermal 53 | 7 46 Explosive 6 | . 6 Electromagnetic . | . . Robot Hit Streak 8 | 7 8 Robot Miss Streak 7 | 2 7 Penetration Max . | . . Secondary Targets . | . . Shots Hit Robots 63 | 10 53 Core Hits 27 | 3 24 Critical Kills . | . . Critical Parts Destroyed 1 | . 1 Critical Strikes 2 | 1 1 Burn 1 | 1 . Destroy 1 | . 1 Melee Attacks . | . . Impact . | . . Slashing . | . . Piercing . | . . Sneak Attacks . | . . Combat Hostiles . | . . Follow-up Attacks . | . . Damage Inflicted 1128 | 108 1020 Guns 511 | 108 403 Cannons 191 | . 191 Explosions 426 | . 426 Melee . | . . Ramming . | . . Kinetic 239 | 33 206 Thermal 463 | 75 388 Explosive 426 | . 426 Electromagnetic . | . . Impact . | . . Slashing . | . . Piercing . | . . Highest Corruption . | . . Average Corruption . | . . Corruption Purged . | . . Corruption Blocked . | . . Overload Shots . | . . Overflow Damage 9 | . 9 Projectiles . | . . Explosions 9 | . 9 Melee . | . . Knockbacks . | . . Impact . | . . Kinetic . | . . Secondary . | . . Self-Inflicted Damage 36 | . 36 Shots 1 | . 1 Rammed . | . . Targets Rammed . | . . Kicked . | . . Crushed . | . . Highest Temperature 348 | 82 348 Average Temperature 95 | 36 103 Received Heat Transfer 450 | 24 426 Effects 2 | . 2 Energy Bleed 2 | . 2 Siege Activations . | . . Martial Activations . | . . Shielding Activations . | . . Robots Disrupted . | . . Combat Hostiles . | . . Robots Corrupted . | . . Combat Hostiles . | . . Parts Fried . | . . Impact Corruptions . | . . Robots Melted . | . . Combat Hostiles . | . . Parts Melted 3 | 2 1 Heat Transferred 1258 | 296 962 Parts Sabotaged . | . . Parts Stolen . | . . Parts Stripped . | . . Power Chain Reactions . | . . Alert | -11 -10 ------- Run | Yrd Mat Maximum Alert Level . | . . Low Security (%) 100 | 100 100 Level 1 . | . . Level 2 . | . . Level 3 . | . . Level 4 . | . . Level 5 . | . . High Security . | . . Max Security . | . . Peak Influence 121 | 20 121 Initial 13 | . 13 Average 41 | 1 54 Influence Increases 289 | 21 268 Destroy 0b10 Robot/C 180 | 20 160 Destroy 0b10 Robot/NC 20 | . 20 Destroy Leader 32 | . 32 Destroy Structure 27 | 1 26 Lose Combat Pursuer 30 | . 30 Influence Decreases 289 | 1 288 Entered New Map 7 | . 7 Time Decay 202 | 1 201 Lost Part 80 | . 80 Squads Dispatched 1 | . 1 Investigation . | . . Extermination . | . . Reinforcement 1 | . 1 Assault . | . . Garrison . | . . Intercept . | . . Searches Triggered . | . . Construction Impeded . | . . Haulers Reinforced . | . . Active Scanning Responses . | . . Cargo Convoy Interrupts . | . . Stealth | -11 -10 --------- Run | Yrd Mat Distress Signals . | . . Communications Jammed . | . . Distress Signals . | . . Times Spotted 15 | 1 14 Peak Tracking Total 5 | 1 5 Tactical Retreats 2 | . 2 Traps | -11 -10 ------- Run | Yrd Mat Traps Triggered . | . . Indirectly . | . . Trap Hack Attempts . | . . Triggered . | . . Disarmed . | . . Reprogrammed . | . . Reused . | . . Traps Extracted . | . . Installed . | . . Triggered . | . . Machines | -11 -10 ---------- Run | Yrd Mat Machines Disabled 1 | . 1 Max in Single Turn 1 | . 1 Machines Repaired . | . . Machines Dismantled . | . . Machines Sabotaged . | . . Overloaded Fab Kills . | . . Hacking | -11 -10 --------- Run | Yrd Mat Machines Accessed 2 | . 2 Terminals 2 | . 2 Fabricators . | . . Repair Stations . | . . Recycling Units . | . . Scanalyzers . | . . Garrison Access . | . . Total Hacks 4 | . 4 Successful 3 | . 3 Failed 1 | . 1 Catastrophic . | . . Database Lockouts . | . . Manual . | . . Terminals 4 | . 4 Fabricators . | . . Repair Stations . | . . Recycling Units . | . . Scanalyzers . | . . Garrison Access . | . . Terminal Hacks 3 | . 3 Record 1 | . 1 Emergency Access Points 1 | . 1 Alert Level 1 | . 1 Fabricator Hacks . | . . Repair Station Hacks . | . . Recycling Unit Hacks . | . . Scanalyzer . | . . Garrison Access Hacks . | . . Unauthorized Hacks . | . . Terminals . | . . Fabricators . | . . Repair Stations . | . . Recycling Units . | . . Scanalyzers . | . . Garrison Access . | . . Data Cores Recovered . | . . Used . | . . Hacking Detections 1 | . 1 Full Trace Events . | . . Feedback Events . | . . Feedback Blocked . | . . Robot Schematics Acquired . | . . Robots Built . | . . Authchips . | . . Time . | . . Total Robot Build Rating . | . . Part Schematics Acquired . | . . Parts Built . | . . Authchips . | . . Time . | . . Total Part Build Rating . | . . Part Studies Acquired . | . . Parts Repaired . | . . Time . | . . Parts Recycled . | . . Recycled Matter . | . . Retrieved Matter . | . . Retrieved Components . | . . Parts Scanalyzed . | . . Part Schematics Acquired . | . . Parts Damaged . | . . Bothacking | -11 -10 ------------ Run | Yrd Mat Used RIF Installer . | . . Robots Hacked . | . . Non-combat . | . . Combat . | . . Robot Hacks Applied . | . . Relay Couplers Released . | . . Fabnet Peak Effective % . | . . Robots Rewired . | . . Allies Hacked . | . . Hacks Repelled . | . . Allies | -11 -10 -------- Run | Yrd Mat Total Allies . | . . Largest Group . | . . Highest-Rated Group . | . . Highest-Rated Ally . | . . Total Orders . | . . Ally Attacks . | . . Total Damage . | . . Kills . | . . Allies Corrupted . | . . Allies Melted . | . . Intel | -11 -10 ------- Run | Yrd Mat Active Infowar (turns) 421 | . 421 Optics 421 | . 421 Robot Analysis Total . | . . Derelict Logs Recovered . | . . Drone Launches . | . . Drone Recoveries . | . . Exploration | -11 -10 ------------- Run | Yrd Mat Turns Passed 616 | 155 461 Spaces Moved 427 | 161 266 Core 72 | 63 9 Treads . | . . Legs 109 | 4 105 Wheels 246 | 94 152 Hover . | . . Flight . | . . Fastest Speed 50 | 50 50 Average Speed 86 | 69 97 Slowest Speed 120 | 120 120 Overloaded Moves . | . . Propulsion Burnouts . | . . Robots Hopped . | . . Potential Cave-ins . | . . Cave-ins Triggered . | . . Exploration Rate (%) 17 | 6 28 Regions Visited 1 Branch Regions . Pre-discovered Areas . | . . Known Exits Taken . | . . Unknown Exits Taken 1 | 1 . Scrap Searched . | . . Spaces Dug 5 | . 5 Terrain Destroyed 25 | . 25 Melee . | . . Projectile . | . . AOE 25 | . 25 Terrain Rammed . | . . Walls Destroyed . | . . Machines Disabled . | . . Actions | -11 -10 --------- Run | Yrd Mat Total 571 | 191 380 Wait 35 | 8 27 Move 426 | 160 266 Hop . | . . Pick Up 17 | 7 10 Fast Attach 3 | . 3 Attach 13 | 5 8 Detach 1 | . 1 Swap 8 | 2 6 Drop 3 | 2 1 Fire 65 | 7 58 Melee . | . . Ram . | . . Kick . | . . Crush . | . . Escape Stasis . | . . Rewire . | . . Trap . | . . Miscellaneous . | . . Route ------- -11/Scrapyard -10/Materials (discovered 1 exit: [*Min]) History --------- Turn | Location | Event 2 | -11/Scrapyard | Met Revision 17 121 | -11/Scrapyard | Discovered new exit (range 8) 156 | -11/Scrapyard | Entered Materials 253 | -10/Materials | Discovered new exit (range 13) 307 | -10/Materials | Build established: Mutant 380 | -10/Materials | Core integrity fell below 50% 404 | -10/Materials | Lost 4 parts (1p1n2w) 428 | -10/Materials | Core integrity fell below 20% 462 | -10/Materials | Lost 3 parts (1p1n1w) 617 | -10/Materials | Destroyed by G-34 Mercenary with Small Laser Last Messages --------------- Enter. 00454_ Acquired Particle Gun. 00455_ Acquired 33 matter. 00457_ Acquired Particle Gun. 00464_ K-01 Serf collects debris. 00468_ Acquired Lgt. Ion Engine. 00471_ K-01 Serf collects debris. 00493_ Acquired 23 matter. 00505_ R-06 Scavenger collects Terrain Scan Processor. 00522_ R-06 Scavenger collects Aluminum Leg. 00523_ K-01 Serf collects debris. 00526_ R-06 Scavenger collects Aluminum Leg. 00529_ K-01 Serf collects debris. 00557_ K-01 Serf cleans the Fusion Modulator. 00558_ Acquired Terrain Scanner. 00565_ K-01 Serf cleans the Fusion Modulator. 00598_ K-01 Serf collects debris. [Achievement: First Step to Greatness] Map ----- +----------------------------------------------------+ | ????????????????????????????????????????????????? | | ????????????????????????????????????????????????? | | ????????????????????????????????????????????????? | | ????????????????????????????????????????????????? | | ????????????????????????????????????????????????? | | ????????????????????????????????????????????????? | | ????????????????????????????????????????????????? | | ?????????????????????###????????????????????????? | | ???????????????#######T########?????????????????? | | ???????????????# #?????????????+???? | | ???????????????# #???????????? #???? | | ???????????????# #??????????? #???? | | ???????????????############ ########### #???? | | ??????????????????????????# #???? | | ??????????????????????????# +???? | | ??????????????????????????# [ """ #???? | | ??????????????????????????# []] """""??????? | | ??????????????????????????# [] """"" ##??? | | ??????????????????????????# """"" #??? | | ??????????????????????????# """ #??? | | ??????????????????????????# #??? | | ??????????????????????????# #??? | | ??##########??????????????# #??? | | ??# #??????????????# #######+###??? | | ??# """ ################ #????????????? | | ??# """ # @ g #????????????? | | ??# """ # g #???#????????? | | ??# + k [ ### #???"""??? | | ??# """ # # ## """??? | | ??# """ # % #* """??? | | ??# """ ## ########### # """??? | | ??# ## %#????????## + """??? | | ??########### !#????????####+#######% # | | ??????????? + ############# ### ######/#? | | ?????????? # # !! # #?? =% #??????? | | ?????????" # # !! # #??? #??????? | | ????????"" ?# # """ ! #" =#???? #??????? | | ???????? ??# # """ #T #?????< #??????? | | ???????? ???# # """ #" #????? #??????? | | ???????#????# # # #?????? #??????? | | ????????????# + % #####??????? #??????? | | ????????????# #############????????????#??????? | | ????????????# #???????????????????????????????? | | ????????????# #???????????????????????????????? | | ????????????#=%[#???????????????????????????????? | | ????????????# = #???????????????????????????????? | | ????????????# #???????????????????????????????? | | ????????????# #???????????????????????????????? | | ????????????# #???????????????????????????????? | | ????????????# #???????????????????????????????? | +----------------------------------------------------+ Best States ------------- Heat Dissipation 25 Energy Generation 10 Energy Capacity 350 Matter Stores 300 Matter Capacity 300 Sight Range 18 Terrain Scan Density 10 Evasion (%) 55 Item Schematics ----------------- None Robot Schematics ------------------ None Fabricated ------------ Nothing Repaired ---------- Nothing Studied --------- None Alien Tech Used ----------------- None Achievements -------------- DATA ERROR: Steam Global Achievement% First Step to Greatness Organ Harvest Spot Them First There's More Where That Came From Challenges ------------ None Game ------ Seed LauncherEnergyBay Manual? 0 Play Time 01:05:40 Cumulative 1.0 hours Start 2026.02.12 @ 20:23:24 End 2026.02.12 @ 21:54:57 Sessions 1 Manual Loads 0 Difficulty Rogue Special Mode None Game No. 3 Rogue 3 Adventurer 0 Explorer 0 Win Type - Total 0 Types 0/0/0/0/0/0/0/0/0/0 Lore% 1 Gallery% 3 Achievement% 3 Wizard Run 0 Options --------- Layout 1 ASCII 0 Keyboard 1 Movement Arrows Keybinds 0 Fullscreen 1 Font 24/Smallcaps Map View 50x35 Zoom Use 22% Tactical HUD 1 Map Filters NONE Filters NONE Steam 1 RUN: 736a68b8-0c39-4a17-afcc-396bb0228ce3